Cogmind - Beta 15 *** ADVENTURER MODE // 2025.10.03 @ 14:09:03 // Winter2019/RPGLIKE Player: Gallgagger Result: Destroyed by 4M-YK4(g) with Salvaging Laser Performance ------------- Evolutions (0) 0 Regions Visited (5) 1000 Robots Destroyed (74) 370 Value Destroyed (2354) 2354 Prototype IDs (3) 60 Alien Tech Used (0) 0 Bonus (147) 147 TOTAL SCORE: 3931 Bonus ------- High Alert Combat Kills 112 Follower Combat Kills 149 Friendly Fire -114 Cogmind --------- Core Integrity 0/600 Matter 212/300 Energy 180/180 System Corruption 1% Temperature Cool (18) Movement Immobile (Siege) Location -7/Scraptown Parts ------- > --- POWER (2) -------- Meta Core > --- PROPULSION (6) --- Tri-treads Tri-treads > --- UTILITY (4+1) ---- Siege Articulator Siege Articulator Targeting Computer Makeshift Medium Armor Plating > --- WEAPON (3+1) ----- Siege Cannon (+) > --- INVENTORY (2) ---- Protomatter-48 CPS Tube (2) Peak State ------------ > --- POWER ------------ Meta Core > --- PROPULSION ------- Tri-treads Tri-treads > --- UTILITY ---------- Siege Articulator Siege Articulator Targeting Computer Makeshift Medium Armor Plating > --- WEAPON ----------- Siege Cannon CPS Tube > --- INVENTORY -------- Protomatter CPS Tube [Rating: 86] Favorites ----------- Power Meta Core Engine Light Ion Engine Power Core Meta Core Propulsion Flight Unit Treads Tri-treads Wheel Wheel Flight Unit Flight Unit Utility Targeting Computer Device ECM Suite Processor Targeting Computer Protection Scrap Shield Weapon Beamcaster Energy Gun Beamcaster Ballistic Gun Heavy Assault Rifle Ballistic Cannon Siege Cannon Special Weapon CPS Tube Build | -11 -10 -10 -10 -7 -7 ------- Run | Yrd Mat Min Sub Rec Scr Slots Evolved 11 | 4 3 1 . . 3 Power 1 | 1 . . . . . Propulsion 5 | 1 2 1 . . 1 Utility 3 | 1 1 . . . 1 Weapon 2 | 1 . . . . 1 Parts Attached 33 | 6 6 8 4 2 7 Power 3 | 2 . . 1 . . Engine 2 | 2 . . . . . Core 1 | . . . 1 . . Reactor . | . . . . . . Propulsion 12 | 2 5 1 2 . 2 Treads 2 | . . . . . 2 Leg . | . . . . . . Wheel 2 | 2 . . . . . Hover . | . . . . . . Flight 8 | . 5 1 2 . . Utility 9 | . 1 4 1 . 3 Device 3 | . . 1 . . 2 Storage . | . . . . . . Processor 1 | . . 1 . . . Hackware . | . . . . . . Protection 5 | . 1 2 1 . 1 Artifact . | . . . . . . Weapon 9 | 2 . 3 . 2 2 Energy Gun 2 | . . 1 . 1 . Energy Cannon . | . . . . . . Ballistic Gun 5 | 2 . 2 . 1 . Ballistic Cannon 1 | . . . . . 1 Launcher . | . . . . . . Special Weapon 1 | . . . . . 1 Impact Weapon . | . . . . . . Slashing Weapon . | . . . . . . Piercing Weapon . | . . . . . . Special Melee Weapon . | . . . . . . Unidentified Prototypes 3 | . . . 2 . 1 Parts Lost . | . . . . . . Power . | . . . . . . Propulsion . | . . . . . . Utility . | . . . . . . Weapon . | . . . . . . Highest Loss Streak . | . . . . . . To Critical Strikes . | . . . . . . Average Backups 1 | . 1 2 2 2 1 Power . | . . . . . . Propulsion 1 | . 1 2 2 2 1 Utility . | . . . . . . Weapon . | . . . . . . Tool/Special . | . . . . . . Unused Backups 2 | . . . . . 2 Power . | . . . . . . Propulsion 1 | . . . . . 1 Utility . | . . . . . . Weapon . | . . . . . . Tool/Special 1 | . . . . . 1 Average Slot Usage (%) 64 | . 84 97 62 44 45 Engine 8 | . 22 16 3 . . Core 2 | . . . 3 5 5 Wheel 2 | . 10 . . . . Flight 21 | . 18 40 27 16 15 Processor 4 | . . 4 6 5 5 Protection 7 | . 10 14 6 5 5 Energy Gun 5 | . . . 6 9 10 Ballistic Gun 8 | . 22 15 6 1 . Peak Build Rating 86 | 6 9 17 66 68 86 Average Rating 41 | 4 7 13 43 67 68 On Entrance 27 | . 6 9 17 66 67 Naked Turns . | . . . . . . Heaviest Build 47 | 11 12 20 34 33 47 Greatest Support 114 | 26 31 25 46 46 114 Greatest Overweight (x) 1 | . . . 1 . . Average Overweight (x) . | . . . . . . Largest Inventory Capacity 2 | 2 2 2 2 2 2 Average Capacity 2 | 2 2 2 2 2 2 Most Carried 2 | . 2 2 2 2 2 Average Carried 1 | . 1 2 2 2 1 Final Capacity 2 | 2 2 2 2 2 2 Final Carried 2 | . 2 2 2 2 2 Class Distribution -------------------- 38% | Mutant 28% | Scavenger-Sprinter 22% | Commander-Mutant 9% | Commander-Gunner Dominant Class ---------------- Mutant | -10/Materials Scavenger-Sprinter | -10/Mines Mutant | -10/Subcaves Mutant | -7/Recycling Commander-Mutant | -7/Scraptown Resources | -11 -10 -10 -10 -7 -7 ----------- Run | Yrd Mat Min Sub Rec Scr Matter Collected 1474 | 260 488 417 226 73 10 Remotely . | . . . . . . Salvage Created 3282 | . 901 262 724 861 534 Parts 180 | . 79 7 41 24 29 Haulers Intercepted 2 | . 2 . . . . Recyclers Shooed 1 | . . . . 1 . Parts Field Recycled . | . . . . . . Retrieved Matter . | . . . . . . Parts Self-Destructed 11 | . . . 11 . . Prevented . | . . . . . . Kills | -11 -10 -10 -10 -7 -7 ------- Run | Yrd Mat Min Sub Rec Scr Combat Hostiles Destroyed 81 | . 32 17 19 9 4 Guns 77 | . 32 17 19 9 . Cannons 3 | . . . . . 3 Classes Destroyed 15 | . 4 1 3 4 3 Hauler 2 | . 2 . . . . Recycler 1 | . . . . 1 . Turret 2 | . . . 2 . . Watcher 2 | . 2 . . . . Swarmer 17 | . 6 3 7 1 . Grunt 26 | . 26 . . . . Brawler 1 | . . . . 1 . Protector 2 | . . . . 2 . Sentry 5 | . . . 1 4 . Programmer 1 | . . . . 1 . Subdweller 11 | . . . 11 . . Bolteater 1 | . . . . . 1 Explorer 1 | . . . . . 1 Elite 1 | . . . . . 1 Assembled 14 | . . 14 . . . Best Kill Streak 7 | . 5 7 6 3 3 Combat Bots Only 7 | . 5 7 4 3 3 Max Kills in Single Turn 2 | . 1 1 2 1 2 Gunslinging 1 | . . . 1 . . Exploded . | . . . . . . Melee . | . . . . . . Uniques/NPCs Destroyed 1 | . . . . . 1 Triborg (-7/Scraptown) Combat | -11 -10 -10 -10 -7 -7 -------- Run | Yrd Mat Min Sub Rec Scr Hostile Shots Fired 544 | . 157 52 151 88 96 Missed 208 | . 51 16 61 55 25 Hits 336 | . 106 36 90 33 71 Melee 12 | . . 8 . . 4 Projectile 324 | . 106 28 90 33 67 AOE 3 | . . 1 . 2 . Critical Strikes 4 | . 2 . 1 1 . Part Disruptions 1 | . . . . . 1 Damage Taken 3207 | . 836 395 1187 297 492 Core 2137 | . 633 311 657 176 360 Absorbed by Shields 48 | . . . . . 48 Reduced by Siege Mode 11 | . . . . . 11 Redirected to Core 1705 | . 464 160 641 158 282 Redirected to Shielding 59 | . 44 15 . . . Ignored by Resistances 972 | . 268 118 334 88 164 Core Remaining (%) 100 | 100 . . . . . Volleys Fired 303 | . 117 61 79 40 6 Largest 3 | . 2 2 2 2 3 Hottest 138 | . 40 98 98 138 138 Shots Fired 569 | . 234 113 141 71 10 Gun 565 | . 234 113 141 71 6 Cannon 2 | . . . . . 2 Launcher . | . . . . . . Special 2 | . . . . . 2 Kinetic 412 | . 234 101 62 13 2 Thermal 155 | . . 12 79 58 6 Explosive . | . . . . . . Electromagnetic . | . . . . . . Robot Hit Streak 30 | . 30 12 23 29 16 Robot Miss Streak 4 | . 2 4 1 1 . Penetration Max 1 | . . . . . 1 Secondary Targets 8 | . 3 2 3 . . Max Gunslinging Chain 1 | . 1 1 1 . . Shots Hit Robots 437 | . 193 66 105 63 10 Core Hits 177 | . 67 36 35 37 2 Critical Kills 1 | . 1 . . . . Critical Parts Destroyed . | . . . . . . Critical Strikes 11 | . 1 . 6 2 2 Burn 8 | . . . 6 2 . Destroy 1 | . 1 . . . . Blast 2 | . . . . . 2 Melee Attacks . | . . . . . . Impact . | . . . . . . Slashing . | . . . . . . Piercing . | . . . . . . Sneak Attacks . | . . . . . . Combat Hostiles . | . . . . . . Follow-up Attacks . | . . . . . . Damage Inflicted 6632 | . 2115 973 1943 1236 365 Guns 6383 | . 2115 973 1943 1236 116 Cannons 249 | . . . . . 249 Explosions . | . . . . . . Melee . | . . . . . . Ramming . | . . . . . . Kinetic 4282 | . 2115 951 745 222 249 Thermal 2350 | . . 22 1198 1014 116 Explosive . | . . . . . . Electromagnetic . | . . . . . . Impact . | . . . . . . Slashing . | . . . . . . Piercing . | . . . . . . Highest Corruption 1 | . . . . . 1 Average Corruption 1 | . . . . . 1 Corruption Purged . | . . . . . . Corruption Blocked . | . . . . . . Overload Shots . | . . . . . . Overflow Damage 69 | . . . . . 69 Projectiles 69 | . . . . . 69 Explosions . | . . . . . . Melee . | . . . . . . Knockbacks . | . . . . . . Impact . | . . . . . . Kinetic . | . . . . . . Secondary . | . . . . . . Self-Inflicted Damage . | . . . . . . Shots . | . . . . . . Rammed . | . . . . . . Targets Rammed . | . . . . . . Kicked . | . . . . . . Crushed . | . . . . . . Highest Temperature 169 | . . 25 169 1 6 Average Temperature 37 | . . 13 88 1 6 Received Heat Transfer 1394 | . 507 60 611 30 186 Siege Activations 1 | . . . . . 1 Total Turns 5 | . . . . . 5 Longest Duration 5 | . . . . . 5 Martial Activations . | . . . . . . Shielding Activations . | . . . . . . Robots Disrupted . | . . . . . . Combat Hostiles . | . . . . . . Robots Corrupted . | . . . . . . Combat Hostiles . | . . . . . . Parts Fried . | . . . . . . Impact Corruptions . | . . . . . . Robots Melted 1 | . . . . . 1 Combat Hostiles 1 | . . . . . 1 Parts Melted 8 | . . . 4 4 . Heat Transferred 4583 | . . 37 2516 1846 184 Parts Sabotaged . | . . . . . . Parts Stolen . | . . . . . . Parts Stripped . | . . . . . . Power Chain Reactions . | . . . . . . Alert | -11 -10 -10 -10 -7 -7 ------- Run | Yrd Mat Min Sub Rec Scr Maximum Alert Level 2 | . 2 1 . 1 . Low Security (%) 70 | 100 42 71 . 98 . Level 1 13 | . 18 28 . 1 . Level 2 15 | . 38 . . . . Level 3 . | . . . . . . Level 4 . | . . . . . . Level 5 . | . . . . . . High Security . | . . . . . . Max Security . | . . . . . . Peak Influence 588 | . 588 250 . 200 . Initial 190 | . . 190 . 8 . Average 188 | . 299 155 . 96 . Influence Increases 1759 | . 1028 100 240 391 . Destroy 0b10 Robot/C 1040 | . 640 60 200 140 . Destroy 0b10 Robot/NC 60 | . 20 . . 40 . Destroy Leader 178 | . 158 10 10 . . Select Force Hacks 420 | . 210 . . 210 . Destroy Structure 1 | . . . . 1 . Lose Combat Pursuer 60 | . . 30 30 . . Influence Decreases 1759 | . 450 638 260 411 . Entered New Map 424 | . . 388 24 12 . Time Decay 1335 | . 450 250 236 399 . Squads Dispatched 12 | . 12 . . . . Investigation 12 | . 12 . . . . Extermination . | . . . . . . Reinforcement . | . . . . . . Assault . | . . . . . . Garrison . | . . . . . . Intercept . | . . . . . . Searches Triggered . | . . . . . . Construction Impeded . | . . . . . . Haulers Reinforced . | . . . . . . Active Scanning Responses . | . . . . . . Cargo Convoy Interrupts . | . . . . . . Stealth | -11 -10 -10 -10 -7 -7 --------- Run | Yrd Mat Min Sub Rec Scr Distress Signals 2 | . 2 . . . . Communications Jammed . | . . . . . . Distress Signals . | . . . . . . Times Spotted 140 | . 38 40 26 12 24 Peak Tracking Total 21 | . 4 20 6 4 21 Tactical Retreats 6 | . . 3 3 . . Traps | -11 -10 -10 -10 -7 -7 ------- Run | Yrd Mat Min Sub Rec Scr Traps Triggered 3 | . 1 . 2 . . Indirectly . | . . . . . . Trap Hack Attempts . | . . . . . . Triggered . | . . . . . . Disarmed . | . . . . . . Reprogrammed . | . . . . . . Reused . | . . . . . . Traps Extracted . | . . . . . . Installed . | . . . . . . Triggered . | . . . . . . Machines | -11 -10 -10 -10 -7 -7 ---------- Run | Yrd Mat Min Sub Rec Scr Machines Disabled 3 | . . . 3 . . Max in Single Turn 1 | . . . 1 . . Machines Repaired . | . . . . . . Machines Dismantled . | . . . . . . Machines Sabotaged 3 | . 3 . . . . Overloaded Fab Kills . | . . . . . . Hacking | -11 -10 -10 -10 -7 -7 --------- Run | Yrd Mat Min Sub Rec Scr Machines Accessed 18 | . 11 . . 7 . Terminals 8 | . 8 . . . . Fabricators . | . . . . . . Repair Stations 1 | . 1 . . . . Recycling Units 9 | . 2 . . 7 . Scanalyzers . | . . . . . . Garrison Access . | . . . . . . Total Hacks 26 | . 17 . . 9 . Successful 22 | . 15 . . 7 . Failed 4 | . 2 . . 2 . Catastrophic . | . . . . . . Database Lockouts . | . . . . . . Manual 26 | . 17 . . 9 . Terminals 14 | . 14 . . . . Fabricators . | . . . . . . Repair Stations 1 | . 1 . . . . Recycling Units 11 | . 2 . . 9 . Scanalyzers . | . . . . . . Garrison Access . | . . . . . . Terminal Hacks 3 | . 3 . . . . Robot Analysis 3 | . 3 . . . . Fabricator Hacks . | . . . . . . Repair Station Hacks . | . . . . . . Recycling Unit Hacks . | . . . . . . Scanalyzer . | . . . . . . Garrison Access Hacks . | . . . . . . Unauthorized Hacks 19 | . 12 . . 7 . Terminals 9 | . 9 . . . . Botnet 1 | . 1 . . . . Sabotage 8 | . 8 . . . . Fabricators . | . . . . . . Repair Stations 1 | . 1 . . . . Patch 1 | . 1 . . . . Recycling Units 9 | . 2 . . 7 . Tunnel 9 | . 2 . . 7 . Scanalyzers . | . . . . . . Garrison Access . | . . . . . . Data Cores Recovered . | . . . . . . Used . | . . . . . . Hacking Detections 4 | . 4 . . . . Full Trace Events . | . . . . . . Feedback Events . | . . . . . . Feedback Blocked . | . . . . . . Robot Schematics Acquired . | . . . . . . Robots Built . | . . . . . . Authchips . | . . . . . . Time . | . . . . . . Total Robot Build Rating . | . . . . . . Part Schematics Acquired . | . . . . . . Parts Built . | . . . . . . Authchips . | . . . . . . Time . | . . . . . . Total Part Build Rating . | . . . . . . Parts Repaired . | . . . . . . Time . | . . . . . . Parts Recycled . | . . . . . . Recycled Matter . | . . . . . . Retrieved Matter . | . . . . . . Retrieved Components . | . . . . . . Parts Scanalyzed . | . . . . . . Part Schematics Acquired . | . . . . . . Parts Damaged . | . . . . . . Bothacking | -11 -10 -10 -10 -7 -7 ------------ Run | Yrd Mat Min Sub Rec Scr Used RIF Installer . | . . . . . . Robots Hacked . | . . . . . . Non-combat . | . . . . . . Combat . | . . . . . . Robot Hacks Applied . | . . . . . . Relay Couplers Released . | . . . . . . Fabnet Peak Effective % . | . . . . . . Robots Rewired 14 | . . . . 14 . Allies Hacked . | . . . . . . Hacks Repelled . | . . . . . . Allies | -11 -10 -10 -10 -7 -7 -------- Run | Yrd Mat Min Sub Rec Scr Total Allies 14 | . . . . 14 . Largest Group 14 | . . . . 14 14 Highest-Rated Group 240 | . . . . 240 240 Highest-Rated Ally 39 | . . . . 39 39 Total Orders 11 | . . . . 1 10 STAY 10 | . . . . 1 9 FOLLOW 1 | . . . . . 1 Ally Attacks 42 | . . . . . 42 Total Damage 1090 | . . . . . 1090 Kills 7 | . . . . . 7 Allies Corrupted . | . . . . . . Allies Melted . | . . . . . . Intel | -11 -10 -10 -10 -7 -7 ------- Run | Yrd Mat Min Sub Rec Scr Active Infowar (turns) 2 | . . 2 . . . ECM 2 | . . 2 . . . Robot Analysis Total 3 | . 3 . . . . Derelict Logs Recovered 2 | . . 1 1 . . Drone Launches . | . . . . . . Drone Recoveries . | . . . . . . Exploration | -11 -10 -10 -10 -7 -7 ------------- Run | Yrd Mat Min Sub Rec Scr Turns Passed 4191 | 38 992 502 800 930 929 Spaces Moved 5526 | 35 834 1030 1594 1165 868 Core 1 | 1 . . . . . Treads 8 | . . . . . 8 Legs . | . . . . . . Wheels 345 | 34 311 . . . . Hover . | . . . . . . Flight 5172 | . 523 1030 1594 1165 860 Fastest Speed 28 | 50 31 28 28 39 39 Average Speed 38 | 84 54 28 33 39 39 Slowest Speed 129 | 90 90 31 129 39 120 Overloaded Moves . | . . . . . . Propulsion Burnouts . | . . . . . . Robots Hopped 77 | . 7 22 2 46 . Potential Cave-ins . | . . . . . . Cave-ins Triggered . | . . . . . . Exploration Rate (%) 74 | 4 98 98 92 99 55 Regions Visited 5 Branch Regions 4 Pre-discovered Areas 9 | . 2 . . 7 . Known Exits Taken . | . . . . . . Unknown Exits Taken 5 | 1 1 1 1 1 . Scrap Searched 14 | . . 1 9 . 4 Spaces Dug 1 | . . 1 . . . Terrain Destroyed 4 | . . 3 . . 1 Melee . | . . . . . . Projectile 4 | . . 3 . . 1 AOE . | . . . . . . Terrain Rammed . | . . . . . . Walls Destroyed . | . . . . . . Machines Disabled . | . . . . . . Actions | -11 -10 -10 -10 -7 -7 --------- Run | Yrd Mat Min Sub Rec Scr Total 6974 | 40 1148 1106 1713 1523 1444 Wait 973 | . 155 . 15 251 552 Move 5383 | 34 819 989 1589 1084 868 Hop 61 | . 7 18 2 34 . Pick Up 5 | . 2 . . . 3 Fast Attach 23 | 6 3 3 3 2 6 Attach 1 | . . . . . 1 Detach . | . . . . . . Swap 10 | . 3 6 1 . . Drop 20 | . 1 2 7 2 8 Fire 303 | . 117 61 79 40 6 Melee . | . . . . . . Ram . | . . . . . . Kick . | . . . . . . Crush . | . . . . . . Escape Stasis . | . . . . . . Rewire 90 | . . . . 90 . Trap . | . . . . . . Miscellaneous 105 | . 41 27 17 20 . Route ------- -11/Scrapyard -10/Materials (discovered 4 exits: [*Mat x3] / [*Min]) -10/Mines (discovered 3 exits: [*Mat x2] / [*Sub]) -10/Subcaves (discovered 3 exits: [*Mat x2] / *Rec) -7/Recycling (discovered 2 exits: [*Fac] / [*Scr]) -7/Scraptown (discovered 1 exit: [*Fac]) History --------- Turn | Location | Event 1 | -11/Scrapyard | Upgraded with Power slot (x1) 1 | -11/Scrapyard | Upgraded with Propulsion slot (x1) 1 | -11/Scrapyard | Upgraded with Utility slot (x1) 1 | -11/Scrapyard | Upgraded with Weapon slot (x1) 16 | -11/Scrapyard | Discovered new exit (range 16) 39 | -11/Scrapyard | Entered Materials 104 | -10/Materials | Discovered new exit (range 5) 303 | -10/Materials | Build established: Mutant 429 | -10/Materials | Reached level 2 546 | -10/Materials | Discovered new exit (range 5) 627 | -10/Materials | Reached level 3 717 | -10/Materials | Upgraded with Propulsion slot (x2) 717 | -10/Materials | Upgraded with Utility slot (x1) 732 | -10/Materials | Discovered new exit (range 12) 870 | -10/Materials | Discovered new exit (range 13) 889 | -10/Materials | Reached level 4 1029 | -10/Materials | Build established: Scavenger-Sprinter 1031 | -10/Materials | Entered Mines 1060 | -10/Mines | Upgraded with Propulsion slot (x1) 1132 | -10/Mines | Discovered new exit (range 9) 1164 | -10/Mines | Assembled infested the area 1169 | -10/Mines | Assisted by a Guerilla fighting off Assembled 1169 | -10/Mines | Learned Materials trap positions 1219 | -10/Mines | Discovered new exit (range 15) 1225 | -10/Mines | Joined a pair of Derelicts in attacking an 0b10 outpost 1386 | -10/Mines | Destroyed 7 combat bots 1528 | -10/Mines | Discovered new exit (range 4) 1533 | -10/Mines | Entered Subcaves 1535 | -10/Subcaves | Reached level 5 1539 | -10/Subcaves | Shifting Twisted Machinery released Scrap Shield 1546 | -10/Subcaves | Ambushed by Subdwellers from Twisted Machinery 1596 | -10/Subcaves | Shifting Twisted Machinery released Flamer 1603 | -10/Subcaves | Shifting Twisted Machinery released Shrapnel Trap 1681 | -10/Subcaves | Disturbed a concealed Subdweller 1703 | -10/Subcaves | Discovered new exit (range 10) 1756 | -10/Subcaves | Learned Materials trap positions 1785 | -10/Subcaves | Visited 4L-MR0's lab 1790 | -10/Subcaves | Found Prototype Power Core 1790 | -10/Subcaves | Identified Meta Core 1792 | -10/Subcaves | Attached Meta Core, gained temporary slots: Propulsion, Utility, Weapon 1803 | -10/Subcaves | Discovered new exit (range 5) 1819 | -10/Subcaves | Disturbed a concealed Subdweller 1890 | -10/Subcaves | Shifting Twisted Machinery released Multitool 1900 | -10/Subcaves | Shifting Twisted Machinery released Sub. Laser 1947 | -10/Subcaves | A Subdweller sparked back to life 1954 | -10/Subcaves | Found Prototype Flight Unit 1954 | -10/Subcaves | Identified Flightbrick 1956 | -10/Subcaves | Attached Flightbrick, gained temporary slots: Utility x3 1987 | -10/Subcaves | Core integrity fell below 50% 2071 | -10/Subcaves | Discovered new exit (range 16) 2117 | -10/Subcaves | Reached level 6 2126 | -10/Subcaves | Core integrity fell below 20% 2260 | -10/Subcaves | Build established: Mutant 2333 | -10/Subcaves | Entered Recycling 2335 | -7/Recycling | Reached level 7 2353 | -7/Recycling | Reached level 8 2487 | -7/Recycling | Discovered new exit (range 16) 2489 | -7/Recycling | Reached level 9 2870 | -7/Recycling | Scanned before Scraplab entrance 2930 | -7/Recycling | Entered Scraplab 2933 | -7/Recycling | Discovered new exit (range 2) 3128 | -7/Recycling | Build established: Commander-Mutant 3263 | -7/Recycling | Entered Scraptown 3263 | -7/Scraptown | Accompanied by 14 allies 3265 | -7/Scraptown | Reached level 10 3282 | -7/Scraptown | Heard Great Nut preacher, LISTEN AND RECITE! 3385 | -7/Scraptown | Visited Awakened 3428 | -7/Scraptown | Visited Cyclists 3436 | -7/Scraptown | Visited The Evicted 3446 | -7/Scraptown | Visited Fellowship of the Rings 3452 | -7/Scraptown | Visited TADAMA 3454 | -7/Scraptown | Visited Junk Repository 3565 | -7/Scraptown | Discovered new exit (range 11) 3677 | -7/Scraptown | Visited Symbiants 3730 | -7/Scraptown | Upgraded with Weapon slot (x1) 4054 | -7/Scraptown | Build established: Commander-Gunner 4154 | -7/Scraptown | Attacked by Scraptown defenders 4161 | -7/Scraptown | Destroyed Triborg 4166 | -7/Scraptown | Found Tri-treads 4172 | -7/Scraptown | Found Prototype Ballistic Cannon 4172 | -7/Scraptown | Identified Siege Cannon 4179 | -7/Scraptown | Found Siege Articulator 4181 | -7/Scraptown | Upgraded with Propulsion slot (x1) 4183 | -7/Scraptown | Found Tri-treads 4185 | -7/Scraptown | Upgraded with Utility slot (x1) 4185 | -7/Scraptown | Found Siege Articulator 4192 | -7/Scraptown | Destroyed by 4M-YK4(g) with Salvaging Laser Last Messages --------------- 04185_ Penetrated by Bolt. 04187_ CPS Tube expended. 04187_ CPS modules attach to 46-8F3(r). 04187_ Penetrated by Slug. 04187_ Penetrated by Bolt. 04188_ Activated siege mode. 04189_ Siege Slug penetrates 46-8F3(r). 04189_ 46-8F3(r) suffers critical hit (Blast). 04189_ CPS modules swiftly deploy to protect 46-8F3(r) components. 04189_ 46-8F3(r) destroyed. 04190_ Penetrated by Bolt. 04191_ Siege Slug penetrates OV-2J2(x). 04191_ Destroyed Imp. Sensor Array. 04191_ Destroyed Lgt. Ion Engine. 04191_ OV-2J2(x) suffers critical hit (Blast). 04191_ OV-2J2(x) destroyed. 04191_ PU-220(E) destroyed. 04191_ 8E-YQJ(r) follow-up attacks with Ripteeth. Map ----- +----------------------------------------------------+ | #??????? #?# #???????????????????????? | | ########## ##### ##########?????????????????????? | | #?????????????????????? | | #?????????????????????? | | #?????????????????????? | | #?????????????????????? | | #?????????????????????? | | ################# #?????????????????????? | | #???????????????# #?????????????????????? | | #???????????????# #?????????????????????? | | #???????????????# = #?????????????????????? | | #???????????????#%%= #?????????????????????? | | #???????????????# !! #?????????????????????? | | #???????????????# [###???????????????????? | | #???????????????# !*""#"??????????????????? | | #?????###???????# g =%""""??????????????????? | | #?????" #???????# !=""##??????????????????? | | #?????# #???????# ###???????????????????? | | #?##### ######??# #########" ???????????? | | #?#" "#??# ??????????? | | #?#" X#??# [=! / ??????????? | | #?#" "#??# [[!==!! "?????????????????? | | #?# #??# %=*!%r!%/ "?????????????????? | | #### ############ ![!!!%*= "?????????????????? | | jh[[ !*! !r "?????????????????? | | z =%! %!/%%@ "?????????????????? | | %! x =%%!% "?????????????????? | | g =%=%!% "?????????????????? | | g "?????????????????? | | #"?????????????????? | | %! h g #??????????????????? | | h #??????????????????? | | #############*#########;% ####??????????????????? | | #?#"% "##;%& #?????????????????????? | | "#?#" "###* #?????????????????????? | | ""#?#" "#?#%* #?????????????????????? | | ""#?#" """ "#?#= #?????????????????????? | | ""#?#" """ "#?# #?????????????????????? | | ""#?#" """ "#?#j #?????????????????????? | | " " ""#?#" "#?# #?????????????????????? | | ""X""""""#?#" "#?# #?????????????????????? | | """""""""#?#"""""""""#?# #?????????????????????? | | #######????###########?# #?????????????????????? | | ???????????????????????# #?????????????????????? | | ????????????############ #?????????????????????? | | ????????????#""""""""""" #?????????????????????? | | ????????????#""""" """"" #?????????????????????? | | ??????#######"""" " "" #?????????????????????? | | ??????# #?????????????????????? | | #??#### #####"" "" "" " #?????????????????????? | +----------------------------------------------------+ Best States ------------- Heat Dissipation 67 Energy Generation 17 Energy Capacity 275 Matter Stores 300 Matter Capacity 300 Sight Range 16 Terrain Scan Density 10 Armor Coverage 800 Resistance: KI 20 Resistance: TH 20 Resistance: EX 20 Resistance: EM 20 Resistance: I 20 Resistance: S 20 Resistance: P 20 Power Shielding 33 Propulsion Shielding 33 Evasion (%) 64 Targeting Accuracy 5 Recoil Reduction 6 Offensive Hacking 10 Item Schematics ----------------- None Robot Schematics ------------------ None Fabricated ------------ Nothing Repaired ---------- Nothing Alien Tech Used ----------------- None Achievements -------------- None Challenges ------------ None RPGLIKE | -11 -10 -10 -10 -7 -7 --------- Run | Yrd Mat Min Sub Rec Scr Levels Raised 9 | . 3 . 2 3 1 XP Earned 17865 | 4000 5056 850 1703 5534 722 XP Spent 11920 | 3520 2800 1400 600 . 3600 Upgrades 22 | 13 4 1 1 . 3 Power Slot 1 | 1 . . . . . Propulsion Slot 5 | 1 2 1 . . 1 Utility Slot 3 | 1 1 . . . 1 Weapon Slot 2 | 1 . . . . 1 Heat Dissipation 7 | 7 . . . . . Mass Support 2 | . 1 . 1 . . Inventory Capacity 2 | 2 . . . . . Protomatter Created 998 | . 552 84 101 127 134 Integrity Restored 1907 | . 823 454 192 438 . Core 1535 | . 633 272 192 438 . Parts 372 | . 190 182 . . . Protomatter Decayed 409 | . 190 87 37 . 95 Game ------ Seed PersonalPrecisionCyclogen Manual? 0 Play Time 00:41:33 Cumulative 392.7 hours Start 2025.10.03 @ 09:55:57 End 2025.10.03 @ 14:09:03 Sessions 2 Manual Loads 0 Difficulty Adventurer Special Mode Winter2019/RPGLIKE Game No. 147 Rogue 0 Adventurer 147 Explorer 0 Win Type - Total 15 Types 2/3/3/3/1/0/0/1/1/1 Lore% 91 Gallery% 82 Achievement% 82 Wizard Run 0 Options --------- Layout 2 ASCII 0 Keyboard 0 Movement Numpad Keybinds 0 Fullscreen 2 Font 24/Smallcaps Map View 50x44 Zoom Use 0% Tactical HUD 1 Map Filters NONE Filters NONE Steam 1 RUN: 7eb300d0-c7ad-4b27-b010-a6570b29d6d0